fUSD/lending_fUSD_20260408
["ID","MTS","AMOUNT","RATE_DAILY","PERIOD"]
[420089359,1775663457115,-2033.244023,0.0001571,2]
[420089360,1775663457127,-151.0,0.0001571,2]
[420089361,1775663457139,-631.145346,0.0001571,2]
[420089362,1775663457152,-912.407916,0.0001571,2]
[420089363,1775663457165,-2033.244023,0.0001571,2]
[420089364,1775663457177,-151.0,0.0001571,2]
[420089365,1775663457189,-912.407916,0.0001571,2]
[420089366,1775663457201,-631.145346,0.0001571,2]
[420089367,1775663457213,-388.03223,0.0001571,2]
[420089368,1775663457225,-151.0,0.0001571,2]
[420089369,1775663457237,-151.0,0.0001571,2]
[420089370,1775663457249,-2033.244023,0.0001571,2]
[420089371,1775663457262,-980.419935,0.0001571,2]
[420089372,1775663457275,-912.407916,0.0001571,2]
[420089373,1775663457287,-631.145346,0.0001571,2]
[420089374,1775663457299,-388.03223,0.0001571,2]
[420089375,1775663457311,-151.0,0.0001571,2]
[420089376,1775663457325,-980.419935,0.0001571,2]
[420089377,1775663457338,-151.0,0.0001571,2]
[420089378,1775663457351,-388.03223,0.0001571,2]
[420089379,1775663457363,-234.680013,0.0001571,2]
[420089380,1775663457375,-237.650924,0.0001571,2]
[420089381,1775663457387,-980.419935,0.0001571,2]
[420089382,1775663457400,-151.0,0.0001571,2]
[420089383,1775663457413,-11303.010631,0.0001571,2]
[420089384,1775663457426,-170.943257,0.0001571,2]
[420089385,1775663457438,-262.400949,0.0001571,2]
[420089386,1775663457451,-388.03223,0.0001571,2]
[420089387,1775663457464,-1318.472927,0.0001571,2]
[420089388,1775663457477,-151.0,0.0001571,2]
[420089389,1775663457490,-151.0,0.0001571,2]
[420089390,1775663457503,-237.650924,0.0001571,2]
[420089391,1775663457516,-151.0,0.0001571,2]
[420089392,1775663457529,-980.419935,0.0001571,2]
[420089393,1775663457541,-2027.179466,0.0001571,2]
[420089394,1775663457554,-151.0,0.0001571,2]
[420089395,1775663457566,-11303.010631,0.0001571,2]
[420089396,1775663457578,-170.943257,0.0001571,2]
[420089397,1775663457590,-1318.472927,0.0001571,2]
[420089398,1775663457603,-237.650924,0.0001571,2]
[420089399,1775663457616,-151.0,0.0001571,2]
[420089400,1775663457628,-2027.179466,0.0001571,2]
[420089401,1775663457640,-11303.010631,0.0001571,2]
[420089402,1775663457652,-631.145346,0.0001571,2]
[420089403,1775663457664,-170.943257,0.0001571,2]
[420089404,1775663457676,-1318.472927,0.0001571,2]
[420089405,1775663457689,-237.650924,0.0001571,2]
[420089406,1775663457701,-151.0,0.0001571,2]
[420089407,1775663457712,-2027.179466,0.0001571,2]
[420089408,1775663457723,-11303.010631,0.0001571,2]
[420089409,1775663457736,-170.943257,0.0001571,2]
[420089410,1775663457748,-2584.756907,0.0001571,2]
[420089411,1775663457759,-1318.472927,0.0001571,2]
[420089412,1775663457771,-151.0,0.0001571,2]
[420089413,1775663457783,-151.0,0.0001571,2]
[420089414,1775663457795,-2027.179466,0.0001571,2]
[420089415,1775663457807,-2584.756907,0.0001571,2]
[420089416,1775663457820,-151.0,0.0001571,2]
[420089417,1775663457830,-808.317096,0.0001571,2]
[420089418,1775663457842,-151.0,0.0001571,2]
[420089419,1775663457855,-2584.756907,0.0001571,2]
[420089420,1775663457867,-151.352849,0.0001571,2]
[420089421,1775663457879,-151.0,0.0001571,2]
[420089422,1775663457891,-151.372749,0.0001571,2]
[420089423,1775663457902,-1165.219709,0.0001571,2]
[420089424,1775663457914,-808.317096,0.0001571,2]
[420089425,1775663457926,-2584.756907,0.0001571,2]
[420089426,1775663457937,-1165.219709,0.0001571,2]
[420089427,1775663457948,-808.317096,0.0001571,2]
[420089428,1775663457960,-1165.219709,0.0001571,2]
[420089429,1775663457971,-808.317096,0.0001571,2]
[420089430,1775663457983,-1659.646483,0.0001571,2]
[420089431,1775663457995,-151.0,0.0001571,2]
[420089432,1775663458006,-1165.219709,0.0001571,2]
[420089433,1775663458018,-1659.646483,0.0001571,2]
[420089434,1775663458030,-151.0,0.0001571,2]
[420089435,1775663458042,-1659.646483,0.0001571,2]
[420089436,1775663458054,-783.271789,0.0001571,2]
[420089437,1775663458066,-1659.646483,0.0001571,2]
[420089438,1775663458079,-783.271789,0.0001571,2]
[420089439,1775663458091,-151.646467,0.0001571,2]
[420089440,1775663458103,-1320.335912,0.0001571,2]
[420089441,1775663458116,-151.0,0.0001571,2]
[420089442,1775663458128,-783.271789,0.0001571,2]
[420089443,1775663458141,-151.0,0.0001571,2]
[420089444,1775663458153,-151.0,0.0001571,2]
[420089445,1775663458165,-1320.335912,0.0001571,2]
[420089446,1775663458177,-557.116664,0.0001571,2]
[420089447,1775663458190,-783.271789,0.0001571,2]
[420089448,1775663458203,-151.0,0.0001571,2]
[420089449,1775663458216,-1320.335912,0.0001571,2]
[420089450,1775663458228,-151.0,0.0001571,2]
[420089451,1775663458241,-557.116664,0.0001571,2]
[420089452,1775663458256,-1320.335912,0.0001571,2]
[420089453,1775663458268,-557.116664,0.0001571,2]
[420089454,1775663458281,-151.0,0.0001571,2]
[420089455,1775663458294,-545.118044,0.0001571,2]
[420089456,1775663458306,-211.117548,0.0001571,2]
[420089457,1775663458319,-151.0,0.0001571,2]
[420089458,1775663458332,-557.116664,0.0001571,2]
[420089459,1775663458345,-545.118044,0.0001571,2]
[420089460,1775663459568,-151.0,0.0001571,2]
[420089461,1775663459614,-376.806069,0.0001571,2]
[420089462,1775663459648,-400.719158,0.0001571,2]
[420089463,1775663459667,-151.0,0.0001571,2]
[420089464,1775663459676,-211.117548,0.0001571,2]
[420089465,1775663459687,-163.489759,0.0001571,2]
[420089466,1775663459696,-545.118044,0.0001571,2]
[420089467,1775663459706,-171.206733,0.0001571,2]
[420089468,1775663459716,-376.806069,0.0001571,2]
[420089469,1775663459726,-400.719158,0.0001571,2]
[420089470,1775663459739,-151.0,0.0001571,2]
[420089471,1775663459750,-211.117548,0.0001571,2]
[420089472,1775663459760,-163.489759,0.0001571,2]
[420089473,1775663459770,-545.118044,0.0001571,2]
[420089474,1775663459780,-171.206733,0.0001571,2]
[420089475,1775663459791,-151.0,0.0001571,2]
[420089476,1775663459801,-376.806069,0.0001571,2]
[420089477,1775663459812,-400.719158,0.0001571,2]
[420089478,1775663459822,-211.117548,0.0001571,2]
[420089479,1775663459833,-693.945351,0.0001571,2]
[420089480,1775663459843,-163.489759,0.0001571,2]
[420089481,1775663459853,-151.0,0.0001571,2]
[420089482,1775663459863,-171.206733,0.0001571,2]
[420089483,1775663459873,-400.719158,0.0001571,2]
[420089484,1775663459883,-693.945351,0.0001571,2]
[420089485,1775663459894,-376.806069,0.0001571,2]
[420089486,1775663459904,-171.206733,0.0001571,2]
[420089487,1775663459914,-151.0,0.0001571,2]
[420089488,1775663459924,-151.0,0.0001571,2]
[420089489,1775663459934,-163.489759,0.0001571,2]
[420089490,1775663459944,-1352.119912,0.0001571,2]
[420089491,1775663459955,-1352.119912,0.0001571,2]
[420089492,1775663459965,-1352.119912,0.0001571,2]
[420089493,1775663459975,-378.257063,0.0001571,2]
[420089494,1775663459985,-693.945351,0.0001571,2]
[420089495,1775663459996,-378.257063,0.0001571,2]
[420089496,1775663460006,-1352.119912,0.0001571,2]
[420089497,1775663460017,-693.945351,0.0001571,2]
[420089498,1775663460027,-378.257063,0.0001571,2]
[420089499,1775663460038,-378.257063,0.0001571,2]
[420089500,1775663460049,-151.0,0.0001571,2]
[420089501,1775663460060,-151.0,0.0001571,2]
[420089502,1775663460071,-231.476561,0.0001571,2]
[420089503,1775663460081,-231.694162,0.0001571,2]
[420089504,1775663460091,-231.476561,0.0001571,2]
[420089505,1775663460101,-151.0,0.0001571,2]
[420089506,1775663460112,-231.694162,0.0001571,2]
[420089507,1775663460124,-231.476561,0.0001571,2]
[420089508,1775663460134,-641.078677,0.0001571,2]
[420089509,1775663460145,-151.0,0.0001571,2]
[420089510,1775663460156,-231.694162,0.0001571,2]
[420089511,1775663460167,-231.476561,0.0001571,2]
[420089512,1775663460178,-151.0,0.0001571,2]
[420089513,1775663460189,-641.078677,0.0001571,2]
[420089514,1775663460201,-231.694162,0.0001571,2]
[420089515,1775663460212,-1243.774526,0.0001571,2]
[420089516,1775663460223,-641.078677,0.0001571,2]
[420089517,1775663460234,-151.0,0.0001571,2]
[420089518,1775663460245,-1243.774526,0.0001571,2]
[420089519,1775663460255,-641.078677,0.0001571,2]
[420089520,1775663460266,-151.0,0.0001571,2]
[420089521,1775663460277,-1243.774526,0.0001571,2]
[420089522,1775663460289,-1572.247701,0.0001571,2]
[420089523,1775663460299,-153.621156,0.0001571,2]
[420089524,1775663460309,-2527.009308,0.0001571,2]
[420089525,1775663460319,-151.0,0.0001571,2]
[420089526,1775663460329,-151.0,0.0001571,2]
[420089527,1775663460339,-1243.774526,0.0001571,2]
[420089528,1775663460350,-390.268321,0.0001571,2]
[420089529,1775663460361,-1572.247701,0.0001571,2]
[420089530,1775663460371,-857.190655,0.0001571,2]
[420089531,1775663460382,-2527.009308,0.0001571,2]
[420089532,1775663460393,-151.0,0.0001571,2]
[420089533,1775663460403,-151.0,0.0001571,2]
[420089534,1775663460414,-857.190655,0.0001571,2]
[420089535,1775663460424,-1572.247701,0.0001571,2]
[420089536,1775663460434,-390.268321,0.0001571,2]
[420089537,1775663460444,-2527.009308,0.0001571,2]
[420089538,1775663460454,-151.0,0.0001571,2]
[420089539,1775663460464,-151.0,0.0001571,2]
[420089540,1775663460475,-151.0,0.0001571,2]
[420089541,1775663460485,-754.935305,0.0001571,2]
[420089542,1775663460496,-1572.247701,0.0001571,2]
[420089543,1775663460507,-390.268321,0.0001571,2]
[420089544,1775663460517,-857.190655,0.0001571,2]
[420089545,1775663460527,-151.0,0.0001571,2]
[420089546,1775663460537,-187.115827,0.0001571,2]
[420089547,1775663460548,-754.935305,0.0001571,2]
[420089548,1775663460557,-390.268321,0.0001571,2]
[420089549,1775663460567,-857.190655,0.0001571,2]
[420089550,1775663460577,-754.935305,0.0001571,2]
[420089551,1775663460587,-151.0,0.0001571,2]
[420089552,1775663460596,-754.935305,0.0001571,2]
[420089553,1775663460605,-1320.429681,0.0001571,2]
[420089554,1775663460618,-151.0,0.0001571,2]
[420089555,1775663460629,-151.0,0.0001571,2]
[420089556,1775663460639,-1320.429681,0.0001571,2]
[420089557,1775663460649,-1360.940005,0.0001571,2]
[420089558,1775663460659,-151.0,0.0001571,2]
[420089559,1775663460669,-4305.0,0.00015714,2]
[420089560,1775663460680,-2023.0,0.00015719,2]
[420089561,1775663460689,-4305.0,0.0001572,2]
[420089562,1775663460698,-4305.0,0.00015727,2]
[420089563,1775663460708,-369.0,0.00015736,2]
[420089564,1775663460718,-670.01,0.00015753,2]
[420089565,1775663460728,-162.0,0.00015758,2]
[420089566,1775663460738,-362.28838287,0.00015773,2]
[420089567,1775663460748,-500.0,0.00015773,2]
[420089568,1775663460758,-500.0,0.00015773,2]
[420089569,1775663460768,-2023.0,0.00015774,2]
[420089570,1775663460778,-1500.0,0.00015778,2]
[420089571,1775663460788,-1500.0,0.00015778,2]
[420089572,1775663460798,-1000.0,0.00015799,7]
[420089573,1775663460808,-4305.0,0.000158,2]
[420089574,1775663460817,-4305.0,0.00015805,2]
[420089575,1775663460827,-492.13551218,0.00015814,2]
[420089576,1775663460837,-666.0,0.00015839,2]
[420089577,1775663460847,-1432.06,0.00015839,2]
[420089578,1775663460856,-97438.76421008,0.0001584,2]
[420089579,1775663460866,-500.0,0.0001584,2]
[420089580,1775663460875,-500.0,0.0001584,2]
[420089581,1775663460885,-500.0,0.0001584,2]
[420089582,1775663460894,-493.4709058,0.0001584,2]
[420089583,1775663460905,-2000.0,0.0001584,2]
[420089584,1775663460915,-2000.0,0.0001584,2]
[420089585,1775663460924,-2000.0,0.0001584,2]
[420089586,1775663460934,-369.0,0.0001585,2]
[420089587,1775663460943,-200.0,0.00015867,2]
[420089588,1775663460953,-200.0,0.00015867,2]
[420089589,1775663460962,-1328.00821915,0.00015867,2]
[420089590,1775663460972,-200.0,0.00015867,2]
[420089591,1775663460982,-200.0,0.00015871,2]
[420089592,1775663460992,-500.0,0.00015872,2]
[420089593,1775663461003,-500.0,0.00015872,2]
[420089594,1775663461013,-200.0,0.00015872,2]
[420089595,1775663461022,-500.0,0.00015873,2]
[420089596,1775663461032,-500.0,0.00015873,2]
[420089597,1775663461043,-500.0,0.00015873,2]
[420089598,1775663461053,-500.0,0.0001589,2]
[420089599,1775663461064,-500.0,0.0001589,2]
[420089600,1775663461073,-500.0,0.0001589,2]
[420089601,1775663461083,-194.91667222,0.0001589,2]
[420089602,1775663461093,-2000.0,0.0001589,2]
[420089603,1775663461103,-2500.0,0.0001589,2]
[420089604,1775663461114,-2608.52370018,0.0001589,2]
[420089605,1775663461125,-500.91934026,0.0001589,2]
[420089606,1775663461135,-1788.04541729,0.0001589,2]
[420089607,1775663461146,-2500.0,0.0001589,2]
[420089608,1775663461157,-2500.0,0.0001589,2]
[420089609,1775663461167,-427.4,0.00015891,2]
[420089610,1775663461177,-4000.0,0.00015895,2]
[420089611,1775663461188,-500.0,0.00015899,2]
[420089612,1775663461198,-1791.31,0.000159,2]
[420089613,1775663461208,-22222.89873192,0.000159,3]
[420089614,1775663461219,-25000.0,0.000159,3]
[420089615,1775663461229,-184.01842302,0.000159,2]
[420089616,1775663461239,-1622.92709691,0.000159,2]
[420089617,1775663461250,-304.32444499,0.000159,2]
[420089618,1775663461261,-1000.0,0.000159,2]
[420089619,1775663461271,-2000.0,0.000159,2]
[420089620,1775663461282,-1527.0,0.00015928,2]
[420089621,1775663461304,-152.0,0.00015928,2]
[420089622,1775663461317,-160.84448172,0.00015928,2]
[420089623,1775663461328,-757.0,0.00015929,2]
[420089624,1775663461340,-477.15533545,0.00015947,2]
[420089625,1775663461350,-159.59,0.00015961,2]
[420089626,1775663461361,-500.8742817,0.00015973,2]
[420089627,1775663461372,-500.0,0.00015973,2]
[420089628,1775663461383,-500.0,0.00015973,2]
[420089629,1775663461393,-500.0,0.00015973,2]
[420089630,1775663461403,-500.0,0.00015973,2]
[420089631,1775663461414,-500.0,0.00015973,2]
[420089632,1775663461424,-527.83727023,0.00015973,2]
[420089633,1775663461435,-500.0,0.00015973,2]
[420089634,1775663461445,-500.0,0.00015973,2]
[420089635,1775663461456,-501.53334874,0.00015973,2]
[420089636,1775663461467,-500.0,0.00015973,2]
[420089637,1775663461477,-500.0,0.00015973,2]
[420089638,1775663461487,-500.0,0.00015973,2]
[420089639,1775663461497,-4924.0,0.00015975,2]
[420089640,1775663461508,-2024.0,0.00015976,2]
[420089641,1775663461519,-646.65982734,0.00015978,2]
[420089642,1775663461530,-599.60298507,0.00015978,2]
[420089643,1775663461541,-4924.0,0.00015978,2]
[420089644,1775663461552,-200.0,0.00015979,2]
[420089645,1775663461562,-518.73749372,0.00015979,2]
[420089646,1775663461572,-209.40437684,0.00015979,2]
[420089647,1775663461583,-151.0,0.00015997,2]
[420089648,1775663461593,-666.0,0.00015999,2]
[420089649,1775663461604,-1432.06,0.00015999,2]
[420089650,1775663461615,-1432.06,0.00015999,2]
[420089651,1775663461625,-1432.06,0.00015999,2]
[420089652,1775663461635,-1432.06,0.00015999,2]
[420089653,1775663461645,-1432.06,0.00015999,2]
[420089654,1775663461655,-1432.06,0.00015999,2]
[420089655,1775663461664,-1432.06,0.00015999,2]
[420089656,1775663461675,-1432.18,0.00015999,2]
[420089657,1775663461685,-223.3967903,0.00015999,2]
[420089658,1775663461695,-214.165588,0.00015999,2]
[420089659,1775663461705,-1999435.77261464,0.00016,2]
[420089660,1775663461716,-1622683.59879348,0.00016,2]
[420089661,1775663462602,-434.9238523,0.00016,2]
[420089662,1775663462951,271.95262305,8.621e-05,2]
[420089663,1775663462985,459.20576,8.621e-05,2]
[420089664,1775663463029,569.3228592,8.621e-05,2]
[420089665,1775663463061,-155.235029,0.00013273,2]
[420089666,1775663463071,-500.0,0.00013698,2]
[420089667,1775663463081,-235.89660325,0.00013698,2]
[420089668,1775663463093,-264.10339675,0.00013698,2]
[420089669,1775663463102,-379.82898282,0.00013698,2]
[420089670,1775663463114,-120.17101718,0.00013698,2]
[420089671,1775663463125,-150.0,0.00013699,2]
[420089672,1775663463135,-151.0,0.00013699,2]
[420089673,1775663463144,-1360.940005,0.00013699,2]
[420089674,1775663463153,-1320.429681,0.00013699,2]
[420089675,1775663463163,-151.0,0.00013699,2]
[420089676,1775663463173,-1360.940005,0.00013699,2]
[420089677,1775663463183,-150.0,0.00013973,2]
[420089678,1775663463193,-2527.009308,0.0001571,2]
[420089679,1775663463203,-151.0,0.0001571,2]
[420089680,1775663463213,-151.0,0.0001571,2]
[420089681,1775663463223,-1360.940005,0.0001571,2]
[420089682,1775663463233,-1320.429681,0.0001571,2]
[420089683,1775663463242,-151.0,0.0001571,2]
[420089684,1775663463253,-627.0,0.000159,2]
[420089685,1775663463262,-2127065.27693609,0.00016,2]
[420089686,1775663463274,-1583.41326918,0.00016,2]
[420089687,1775663463685,500.0,8.621e-05,2]
[420089688,1775663463728,500.0,8.621e-05,2]
[420089689,1775663463765,500.0,8.621e-05,2]
[420089690,1775663463849,500.0,8.621e-05,2]
[420089691,1775663463884,500.0,8.621e-05,2]
[420089692,1775663463915,500.0,8.621e-05,2]
[420089693,1775663463948,644.66933687,8.621e-05,2]
[420089694,1775663463987,500.0,8.621e-05,2]
[420089695,1775663464021,156.42431321,8.621e-05,2]
[420089696,1775663464063,500.0,8.621e-05,2]
[420089697,1775663464425,500.0,8.621e-05,2]
[420089698,1775663464457,479.496359,8.621e-05,2]
[420089699,1775663464489,489.37632167,8.621e-05,2]
[420089700,1775663464523,500.0,8.621e-05,2]
[420089701,1775663464556,500.0,8.621e-05,2]
[420089702,1775663464592,500.0,8.621e-05,2]
[420089703,1775663464637,500.0,8.621e-05,2]
[420089704,1775663464673,180.9569223,8.621e-05,2]
[420089705,1775663464716,248.6055047,8.621e-05,2]
[420089706,1775663464744,471.16446792,8.621e-05,2]
[420089707,1775663464775,500.0,8.621e-05,2]
[420089708,1775663464806,500.0,8.621e-05,2]
[420089709,1775663464844,500.0,8.621e-05,2]
[420089710,1775663464878,500.0,8.621e-05,2]
[420089711,1775663464913,719.76997262,8.621e-05,2]
[420089712,1775663464952,500.0,8.621e-05,2]
[420089713,1775663464991,500.0,8.621e-05,2]
[420089714,1775663465027,719.76997262,8.621e-05,2]
[420089715,1775663465057,500.0,8.621e-05,2]
[420089716,1775663465109,719.76997262,8.621e-05,2]
[420089717,1775663465164,719.76997262,8.621e-05,2]
[420089718,1775663465195,363.33909566,8.621e-05,2]
[420089719,1775663465246,719.76997262,8.621e-05,2]
[420089720,1775663465295,719.76997262,8.621e-05,2]
[420089721,1775663465339,719.76997262,8.621e-05,2]
[420089722,1775663465394,627.11662808,8.621e-05,2]
[420089723,1775663465425,92.65334454,8.621e-05,2]
[420089724,1775663465480,719.76997262,8.621e-05,2]
[420089725,1775663465532,719.76997262,8.621e-05,2]
[420089726,1775663465588,719.76997262,8.621e-05,2]
[420089727,1775663465628,500.0,8.621e-05,2]
[420089728,1775663465664,719.76997262,8.621e-05,2]
[420089729,1775663465708,719.76997262,8.621e-05,2]
[420089730,1775663465760,719.76997262,8.621e-05,2]
[420089731,1775663465809,719.76997262,8.621e-05,2]
[420089732,1775663465862,719.76997262,8.621e-05,2]
[420089733,1775663465911,719.76997262,8.621e-05,2]
[420089734,1775663465951,719.76997262,8.621e-05,2]
[420089735,1775663466000,719.76997262,8.621e-05,2]
[420089736,1775663466043,719.76997262,8.621e-05,2]
[420089737,1775663466096,719.76997262,8.621e-05,2]
[420089738,1775663466148,50.3470114,8.621e-05,2]
[420089739,1775663466177,669.42296122,8.621e-05,2]
[420089740,1775663466223,719.76997262,8.621e-05,2]
[420089741,1775663466263,719.76997262,8.621e-05,2]
[420089742,1775663466320,719.76997262,8.621e-05,2]
[420089743,1775663466362,719.76997262,8.621e-05,2]
[420089744,1775663466415,719.76997262,8.621e-05,2]
[420089745,1775663466467,719.76997262,8.621e-05,2]
[420089746,1775663466522,719.76997262,8.621e-05,2]
[420089747,1775663466566,719.76997262,8.621e-05,2]
[420089748,1775663466607,719.76997262,8.621e-05,2]
[420089749,1775663466649,719.76997262,8.621e-05,2]
[420089750,1775663466690,719.76997262,8.621e-05,2]
[420089751,1775663466732,719.76997262,8.621e-05,2]
[420089752,1775663466777,693.34736734,8.621e-05,2]
[420089753,1775663466807,26.42260528,8.621e-05,2]
[420089754,1775663466867,719.76997262,8.621e-05,2]
[420089755,1775663466931,719.76997262,8.621e-05,2]
[420089756,1775663466986,719.76997262,8.621e-05,2]
[420089757,1775663467091,-193.44169826,0.00010959,2]
[420089758,1775663467100,-500.0,0.00013698,2]
[420089759,1775663467110,-406.01852309,0.00013698,2]
[420089760,1775663467120,-150.0,0.00013699,2]
[420089761,1775663467130,-96.02495571,0.00013699,2]
[420089762,1775663467141,-54.97504429,0.00013699,2]
[420089763,1775663467151,-1320.429681,0.00013699,2]
[420089764,1775663467161,-294.885157,0.00013699,2]
[420089765,1775663467172,-151.0,0.00013699,2]
[420089766,1775663467182,-966.31422707,0.00013699,2]
[420089767,1775663467194,-394.62577793,0.00013699,2]
[420089768,1775663467204,-151.0,0.00013699,2]
[420089769,1775663467214,-150.0,0.00014247,2]
[420089770,1775663467223,-264.34297009,0.0001571,2]
[420089771,1775663467235,-891.89024707,0.0001571,2]
[420089772,1775663467247,-204.70678784,0.0001571,2]
[420089773,1775663467259,-151.0,0.0001571,2]
[420089774,1775663467269,-1320.429681,0.0001571,2]
[420089775,1775663467743,-231.156641,0.0001571,2]
[420089776,1775663467780,-151.0,0.0001571,2]
[420089777,1775663467790,-1360.940005,0.0001571,2]
[420089778,1775663467800,-7674.51900126,0.000159,2]
[420089779,1775663467809,-86269.20675959,0.00016,2]
[420089780,1775663467822,-680.76275655,0.00016,2]
[420089781,1775663467833,-7765.24741519,0.00016,2]
[420089782,1775663467845,-700.71605719,0.00016,2]
[420089783,1775663467881,719.76997262,8.621e-05,2]
[420089784,1775663467916,719.76997262,8.621e-05,2]
[420089785,1775663467955,719.76997262,8.621e-05,2]
[420089786,1775663467994,719.76997262,8.621e-05,2]
[420089787,1775663468037,719.76997262,8.621e-05,2]
[420089788,1775663468077,719.76997262,8.621e-05,2]
[420089789,1775663468124,719.76997262,8.621e-05,2]
[420089790,1775663468269,719.76997262,8.621e-05,2]
[420089791,1775663468282,-27604.45570009,0.00016,2]
[420089792,1775663468319,719.76997262,8.621e-05,2]
[420089793,1775663468356,719.76997262,8.621e-05,2]
[420089794,1775663468396,616.57775066,8.621e-05,2]
[420089795,1775663468425,103.19222196,8.621e-05,2]
[420089796,1775663468479,719.76997262,8.621e-05,2]
[420089797,1775663469546,-151.0,0.00013699,2]
[420089798,1775663469556,-151.0,0.0001571,2]
[420089799,1775663469567,-228680.14869923,0.00016,2]
[420089800,1775663469579,-108555.9999985,0.00016,2]
[420089801,1775663469591,-1423.40184853,0.00016,2]
[420089802,1775663469604,-431.885,0.00016,2]
[420089803,1775663469615,-9988.02,0.00016,2]
[420089804,1775663469628,-1272.49765858,0.00016,2]
[420089805,1775663469674,-150.0,0.000125,2]
[420089806,1775663469684,-150.56,0.00013699,2]
[420089807,1775663469693,-823.15239335,0.00016,2]
[420089808,1775663471178,729.98681052,8.621e-05,2]
[420089809,1775663471224,729.98681052,8.621e-05,2]
[420089810,1775663471266,729.98681052,8.621e-05,2]
[420089811,1775663471312,729.98681052,8.621e-05,2]
[420089812,1775663471356,729.98681052,8.621e-05,2]
[420089813,1775663471715,729.98681052,8.621e-05,2]
[420089814,1775663471755,729.98681052,8.621e-05,2]
[420089815,1775663471791,729.98681052,8.621e-05,2]
[420089816,1775663471831,729.98681052,8.621e-05,2]
[420089817,1775663471873,729.98681052,8.621e-05,2]
[420089818,1775663471916,729.98681052,8.621e-05,2]
[420089819,1775663471968,729.98681052,8.621e-05,2]
[420089820,1775663472016,417.20607918,8.621e-05,2]
[420089821,1775663472047,312.78073134,8.621e-05,2]
[420089822,1775663472087,729.98681052,8.621e-05,2]
[420089823,1775663472134,729.98681052,8.621e-05,2]
[420089824,1775663472175,729.98681052,8.621e-05,2]
[420089825,1775663472237,729.98681052,8.621e-05,2]
[420089826,1775663472288,729.98681052,8.621e-05,2]
[420089827,1775663472333,729.98681052,8.621e-05,2]
[420089828,1775663472383,729.98681052,8.621e-05,2]
[420089829,1775663472434,729.98681052,8.621e-05,2]
[420089830,1775663472479,729.98681052,8.621e-05,2]
[420089831,1775663472519,729.98681052,8.621e-05,2]
[420089832,1775663472559,729.98681052,8.621e-05,2]
[420089833,1775663472596,729.98681052,8.621e-05,2]
[420089834,1775663473645,729.98681052,8.621e-05,2]
[420089835,1775663473688,197.4007319,8.621e-05,2]
[420089836,1775663473721,532.58607862,8.621e-05,2]
[420089837,1775663473760,729.98681052,8.621e-05,2]
[420089838,1775663474337,150.0,8.62e-05,2]
[420089839,1775663474413,300.0,8.62e-05,2]
[420089840,1775663474740,-2500.0,8.623e-05,2]
[420089841,1775663475082,150.0,8.62e-05,2]
[420089842,1775663493081,10000.01,8.622e-05,2]
[420089843,1775663493107,10000.01,8.622e-05,2]
[420089844,1775663493132,10000.01,8.622e-05,2]
[420089845,1775663493159,10000.01,8.622e-05,2]
[420089846,1775663493185,10000.01,8.622e-05,2]
[420089847,1775663493212,10000.01,8.622e-05,2]
[420089848,1775663493240,10000.01,8.622e-05,2]
[420089849,1775663493267,10000.01,8.622e-05,2]
[420089850,1775663493294,10000.01,8.622e-05,2]
[420089851,1775663493320,10000.01,8.622e-05,2]
[420089852,1775663534041,300.0,8.621e-05,2]
[420089853,1775663540755,500.0,8.62e-05,2]
[420089854,1775663581091,300.0,8.621e-05,2]
[420089855,1775663596308,151.0,8.619e-05,2]
[420089856,1775663633004,958.28926477,8.522e-05,2]
[420089857,1775663641605,150.0,8.621e-05,2]
[420089858,1775663646057,462.47766853,8.621e-05,2]